Cogmind - Beta 17.1 @@@ ROGUE MODE // 2026.09.13 @ 20:37:32 Player: stixxx Result: Destroyed by G-67 Veteran with Plasma Rifle Performance ------------- Evolutions (4) 2000 Regions Visited (8) 1600 Robots Destroyed (20) 100 Value Destroyed (727) 727 Prototype IDs (4) 80 Alien Tech Used (0) 0 Bonus (40) 40 TOTAL SCORE: 4547 Bonus ------- Follower Combat Kills 40 Cogmind --------- Core Integrity 0/850 Matter 273/300 Energy 98/100 System Corruption 3% Temperature Cool (12) Movement Core (50) Location -6/Factory Parts ------- > --- POWER (2) -------- (None) > --- PROPULSION (6) --- (None) > --- UTILITY (4) ------ (None) > --- WEAPON (3) ------- (None) > --- INVENTORY (5) ---- Makeshift Light Armor Plating Phase Cannon Makeshift Spear Peak State ------------ > --- POWER ------------ Improved Deuterium Engine > --- PROPULSION ------- Improved Gravmag System Improved Gravmag System > --- UTILITY ---------- Makeshift Light Armor Plating Makeshift Light Armor Plating Hacking Suite > --- WEAPON ----------- Makeshift Spear > --- INVENTORY -------- Reaction Control System Phase Cannon Makeshift Spear [Rating: 30] Favorites ----------- Power Light Ion Engine Engine Light Ion Engine Propulsion Light Treads Treads Light Treads Leg Titanium Leg Hover Unit Improved Gravmag System Flight Unit Surge Thruster Utility Improved Heat Sink Device Improved Heat Sink Storage Small Storage Unit Processor Melee Analysis Suite Hackware Hacking Suite Protection Makeshift Light Armor Plating Weapon Light Assault Rifle Energy Gun Shock Rifle Energy Cannon Ion Cannon Ballistic Gun Light Assault Rifle Ballistic Cannon Improved Light Cannon Launcher Rocket Launcher Piercing Weapon Makeshift Spear Build | -11 -10 -9 -9 -8 -7 -7 -7 -6 ------- Run | Yrd Mat Mat Min Mat Fac Low Low Fac Slots Evolved 8 | . . 2 . 2 2 . . 2 Power 1 | . . . . . 1 . . . Propulsion 4 | . . 1 . 1 . . . 2 Utility 2 | . . 1 . 1 . . . . Weapon 1 | . . . . . 1 . . . Parts Attached 48 | 6 2 15 2 2 8 . 6 7 Power 4 | 1 . 1 . . 1 . . 1 Engine 4 | 1 . 1 . . 1 . . 1 Core . | . . . . . . . . . Reactor . | . . . . . . . . . Propulsion 14 | 2 . 5 . . 2 . 2 3 Treads 2 | 2 . . . . . . . . Leg 4 | . . 2 . . 1 . 1 . Wheel . | . . . . . . . . . Hover 4 | . . . . . . . 1 3 Flight 4 | . . 3 . . 1 . . . Utility 18 | 1 2 5 1 1 4 . 2 2 Device 11 | . 1 4 . 1 3 . 1 1 Storage 2 | 1 1 . . . . . . . Processor 1 | . . 1 . . . . . . Hackware 1 | . . . . . 1 . . . Protection 3 | . . . 1 . . . 1 1 Artifact . | . . . . . . . . . Weapon 12 | 2 . 4 1 1 1 . 2 1 Energy Gun 3 | . . 3 . . . . . . Energy Cannon 3 | . . . . 1 1 . . 1 Ballistic Gun 2 | 2 . . . . . . . . Ballistic Cannon 1 | . . 1 . . . . . . Launcher 1 | . . . 1 . . . . . Special Weapon . | . . . . . . . . . Impact Weapon . | . . . . . . . . . Slashing Weapon . | . . . . . . . . . Piercing Weapon 2 | . . . . . . . 2 . Special Melee Weapon . | . . . . . . . . . Unidentified Prototypes . | . . . . . . . . . Parts Lost 31 | . 5 2 9 4 . . 3 8 Power 4 | . 1 . 1 . . . 1 1 Propulsion 10 | . 2 . 3 1 . . 1 3 Utility 9 | . . 1 2 2 . . 1 3 Weapon 8 | . 2 1 3 1 . . . 1 Highest Loss Streak 8 | . 5 2 8 4 . . 3 8 To Critical Strikes . | . . . . . . . . . Average Backups 1 | . . 1 2 1 1 2 3 3 Power . | . . . . . . . . . Propulsion . | . . . 1 . 1 1 . . Utility . | . . . . . . 1 1 1 Weapon . | . . . . . . . 1 2 Tool/Special . | . . . . . . . . . Unused Backups 4 | . . . . . . . 2 2 Power . | . . . . . . . . . Propulsion . | . . . . . . . . . Utility 2 | . . . . . . . 2 . Weapon 2 | . . . . . . . . 2 Tool/Special . | . . . . . . . . . Average Slot Usage (%) 50 | . 92 57 46 22 49 53 42 22 Engine 5 | . 13 5 3 . 6 7 5 . Treads 3 | . 26 . . . . . . . Leg 4 | . . 3 . 6 6 7 6 2 Flight 1 | . . 11 13 . . . . . Device 13 | . 10 18 16 3 21 23 9 . Storage 2 | . 13 . . . . . . . Hackware 3 | . . . . . 6 7 7 4 Protection 1 | . . . 4 6 . . 4 4 Energy Gun 1 | . . 10 7 . . . . . Energy Cannon 3 | . . . . 6 6 7 1 . Ballistic Gun 3 | . 26 . . . . . . . Piercing Weapon 1 | . . . . . . . 5 4 Peak Build Rating 30 | 6 7 22 19 6 21 21 24 30 Average Rating 11 | 5 6 10 8 4 19 21 18 13 On Entrance 9 | . 6 . 19 1 . 21 21 13 Avg Prop Armor Cover (%) . | . . . . . . . . . Naked Turns 160 | . 15 . . 46 13 . . 86 Heaviest Build 26 | 10 26 16 16 10 18 18 18 17 Greatest Support 40 | 40 40 20 9 10 17 17 17 20 Greatest Overweight (x) 6 | . 6 4 2 1 5 1 1 1 Average Overweight (x) . | . . 1 . . . 1 . . Largest Inventory Capacity 15 | 8 15 5 5 5 5 5 5 5 Average Capacity 6 | 7 12 5 5 5 5 5 5 5 Most Carried 5 | 5 2 5 3 3 5 3 5 5 Average Carried 1 | . . 1 1 1 1 2 3 3 Final Capacity 8 | 8 5 5 5 5 5 5 5 5 Final Carried 4 | . 2 3 1 3 2 3 4 3 Class Distribution -------------------- 98% | Mutant Dominant Class ---------------- Mutant | -10/Materials Mutant | -9/Materials Mutant | -9/Mines Mutant | -8/Materials Mutant | -7/Factory Mutant | -7/Lower Caves Mutant | -7/Lower Caves Mutant | -6/Factory Resources | -11 -10 -9 -9 -8 -7 -7 -7 -6 ----------- Run | Yrd Mat Mat Min Mat Fac Low Low Fac Matter Collected 711 | 226 86 218 10 . . 49 66 56 Remotely . | . . . . . . . . . Salvage Created 769 | . 205 187 20 . 48 . 204 105 Parts 46 | . 14 12 1 . 5 . 8 6 Haulers Intercepted . | . . . . . . . . . Recyclers Shooed . | . . . . . . . . . Parts Field Recycled . | . . . . . . . . . Retrieved Matter . | . . . . . . . . . Parts Self-Destructed 7 | . . . . . . . 7 . Prevented . | . . . . . . . . . Parts Restored . | . . . . . . . . . Kills | -11 -10 -9 -9 -8 -7 -7 -7 -6 ------- Run | Yrd Mat Mat Min Mat Fac Low Low Fac Combat Hostiles Destroyed 17 | . 3 5 1 . 2 . 4 2 Melee 7 | . . . 1 . . . 4 2 Guns 5 | . 3 2 . . . . . . Cannons 5 | . . 3 . . 2 . . . Classes Destroyed 7 | . 3 2 1 . . . . 1 Worker 1 | . 1 . . . . . . . Watcher 2 | . 2 . . . . . . . Swarmer 3 | . . . 1 . 2 . . . Grunt 11 | . 3 3 . . . . 4 1 Duelist 1 | . . 1 . . . . . . Sentry 1 | . . 1 . . . . . . Programmer 1 | . . . . . . . . 1 Best Kill Streak 4 | . 2 3 1 . 2 . 4 1 Combat Bots Only 4 | . 2 3 1 . 2 . 4 1 Max Kills in Single Turn 1 | . 1 1 1 . 1 . 1 1 Gunslinging . | . . . . . . . . . Exploded . | . . . . . . . . . Melee 1 | . . . 1 . . . 1 1 Uniques/NPCs Destroyed . | . . . . . . . . . Combat | -11 -10 -9 -9 -8 -7 -7 -7 -6 -------- Run | Yrd Mat Mat Min Mat Fac Low Low Fac Hostile Shots Fired 487 | . 63 46 66 110 44 . 47 111 Missed 150 | . 13 12 21 34 13 . 12 45 Hits 337 | . 50 34 45 76 31 . 35 66 Melee 11 | . . 4 . . . . . 7 Projectile 326 | . 50 30 45 76 31 . 35 59 AOE 5 | . . . 5 . . . . . Critical Strikes 18 | . 3 1 1 2 1 . 2 8 Damage Taken 4761 | . 701 490 612 691 465 . 555 1247 Core 2139 | . 152 92 249 409 158 . 214 865 Absorbed by Shields . | . . . . . . . . . Core Remaining (%) 44 | 100 39 . 14 25 . . 46 . Volleys Fired 78 | . 29 23 3 12 11 . . . Largest 2 | . 2 2 2 1 1 . . . Hottest 100 | . 40 100 100 60 60 . . . Shots Fired 113 | . 52 34 4 12 11 . . . Gun 76 | . 52 22 2 . . . . . Cannon 35 | . . 12 . 12 11 . . . Launcher 2 | . . . 2 . . . . . Special . | . . . . . . . . . Kinetic 64 | . 52 12 . . . . . . Thermal 23 | . . . . 12 11 . . . Explosive 2 | . . . 2 . . . . . Electromagnetic 24 | . . 22 2 . . . . . Robot Hit Streak 7 | . 6 7 1 . 5 . . . Robot Miss Streak 19 | . 4 6 2 13 19 . . . Penetration Max . | . . . . . . . . . Secondary Targets 1 | . 1 . . . . . . . Max Gunslinging Chain 1 | . 1 . . . . . . . Shots Hit Robots 75 | . 26 19 1 . 5 . 10 14 Core Hits 39 | . 15 7 6 . 2 . 4 5 Critical Kills . | . . . . . . . . . Critical Parts Destroyed 1 | . 1 . . . . . . . Critical Strikes 4 | . 1 . . . . . 2 1 Destroy 1 | . 1 . . . . . . . Impale 3 | . . . . . . . 2 1 Melee Attacks 34 | . . . . . . . 15 19 Impact . | . . . . . . . . . Slashing . | . . . . . . . . . Piercing 34 | . . . . . . . 15 19 Sneak Attacks . | . . . . . . . . . Combat Hostiles . | . . . . . . . . . Follow-up Attacks . | . . . . . . . . . Damage Inflicted 1724 | . 307 373 190 70 138 . 295 351 Guns 518 | . 307 211 . . . . . . Cannons 370 | . . 162 . 70 138 . . . Explosions 141 | . . . 141 . . . . . Melee 636 | . . . . . . . 295 341 Ramming 59 | . . . 49 . . . . 10 Kinetic 469 | . 307 162 . . . . . . Thermal 208 | . . . . 70 138 . . . Explosive 141 | . . . 141 . . . . . Electromagnetic 211 | . . 211 . . . . . . Impact . | . . . . . . . . . Slashing . | . . . . . . . . . Piercing 636 | . . . . . . . 295 341 Highest Corruption 1 | . . . . . . . . 1 Average Corruption 1 | . . . . . . . . 1 Corruption Purged . | . . . . . . . . . Corruption Blocked . | . . . . . . . . . Overload Shots . | . . . . . . . . . Overflow Damage 83 | . . . 44 7 . . 16 16 Projectiles 7 | . . . . 7 . . . . Explosions 44 | . . . 44 . . . . . Melee 32 | . . . . . . . 16 16 Knockbacks 2 | . . 2 . . . . . . Impact . | . . . . . . . . . Kinetic 2 | . . 2 . . . . . . Secondary . | . . . . . . . . . Self-Inflicted Damage 70 | . . . 67 . . . . 3 Shots 1 | . . . 1 . . . . . Rammed 16 | . . . 10 . . . . 6 Targets Rammed 16 | . . . 10 . . . . 6 Kicked . | . . . . . . . . . Crushed . | . . . . . . . . . Highest Temperature 70 | . 49 70 . 16 . . 12 . Average Temperature 19 | . 13 29 . 10 . . 8 . Received Heat Transfer 1419 | . 471 168 . 99 . . 351 330 Siege Activations . | . . . . . . . . . Martial Activations . | . . . . . . . . . Shielding Activations . | . . . . . . . . . Robots Disrupted . | . . . . . . . . . Combat Hostiles . | . . . . . . . . . Robots Corrupted . | . . . . . . . . . Combat Hostiles . | . . . . . . . . . Parts Fried 4 | . . 4 . . . . . . Impact Corruptions . | . . . . . . . . . Robots Melted . | . . . . . . . . . Combat Hostiles . | . . . . . . . . . Parts Melted . | . . . . . . . . . Heat Transferred 333 | . . . . 111 222 . . . Parts Sabotaged . | . . . . . . . . . Parts Stolen . | . . . . . . . . . Parts Stripped . | . . . . . . . . . Power Chain Reactions . | . . . . . . . . . Alert | -11 -10 -9 -9 -8 -7 -7 -7 -6 ------- Run | Yrd Mat Mat Min Mat Fac Low Low Fac Maximum Alert Level . | . . . . . . . . . Low Security (%) 100 | 100 100 100 100 100 100 . . 100 Level 1 . | . . . . . . . . . Level 2 . | . . . . . . . . . Level 3 . | . . . . . . . . . Level 4 . | . . . . . . . . . Level 5 . | . . . . . . . . . High Security . | . . . . . . . . . Max Security . | . . . . . . . . . Peak Influence 90 | . 50 50 37 20 56 . . 90 Initial 25 | . . . 13 . 9 . . 25 Average 5 | . 7 11 11 1 2 . . 18 Influence Increases 897 | . 97 145 82 38 119 . 90 326 Destroy 0b10 Robot/C 380 | . 60 100 20 . 80 . 80 40 Destroy 0b10 Robot/NC 20 | . 15 . . . 5 . . . Destroy Leader 76 | . 14 30 . . 12 . 10 10 Allied During Kill 7 | . . . . . 7 . . . Successful Hack 49 | . 8 . . 5 15 . . 21 Disable Machine 30 | . . . 30 . . . . . Destroy Structure 20 | . . . 17 3 . . . . Partial Spotted 15 | . . 15 . . . . . . Lose Combat Pursuer 300 | . . . 15 30 . . . 255 Influence Decreases 815 | . 97 110 117 18 83 56 50 284 Entered New Map 69 | . . . 22 . 11 21 . 15 Time Decay 483 | . 82 100 45 16 32 35 40 133 Lost Part 157 | . 15 10 50 2 . . 10 70 Lost Ally 40 | . . . . . 40 . . . Purge Threat 66 | . . . . . . . . 66 Squads Dispatched 6 | . . 1 . 2 1 . . 2 Investigation 1 | . . . . . 1 . . . Extermination 2 | . . . . . . . . 2 Reinforcement 3 | . . 1 . 2 . . . . Assault . | . . . . . . . . . Garrison . | . . . . . . . . . Intercept . | . . . . . . . . . Searches Triggered . | . . . . . . . . . Construction Impeded . | . . . . . . . . . Haulers Reinforced . | . . . . . . . . . Active Scanning Responses . | . . . . . . . . . Cargo Convoy Interrupts . | . . . . . . . . . Stealth | -11 -10 -9 -9 -8 -7 -7 -7 -6 --------- Run | Yrd Mat Mat Min Mat Fac Low Low Fac Distress Signals 2 | . . . . 2 . . . . Communications Jammed . | . . . . . . . . . Distress Signals . | . . . . . . . . . Times Spotted 82 | . 9 8 8 18 10 . 4 25 Peak Tracking Total 15 | . 4 4 5 15 5 . 4 10 Tactical Retreats 10 | . . . 2 1 . . . 7 ECM-based Alert Blocks 2 | . . . 2 . . . . . Traps | -11 -10 -9 -9 -8 -7 -7 -7 -6 ------- Run | Yrd Mat Mat Min Mat Fac Low Low Fac Traps Triggered 2 | . . . . . . . . 2 Indirectly . | . . . . . . . . . Trap Hack Attempts . | . . . . . . . . . Triggered . | . . . . . . . . . Disarmed . | . . . . . . . . . Reprogrammed . | . . . . . . . . . Reused . | . . . . . . . . . Traps Extracted . | . . . . . . . . . Installed . | . . . . . . . . . Triggered . | . . . . . . . . . Machines | -11 -10 -9 -9 -8 -7 -7 -7 -6 ---------- Run | Yrd Mat Mat Min Mat Fac Low Low Fac Machines Disabled 2 | . . . 2 . . . . . Max in Single Turn 2 | . . . 2 . . . . . Machines Repaired . | . . . . . . . . . Machines Dismantled . | . . . . . . . . . Machines Sabotaged . | . . . . . . . . . Overloaded Fab Kills . | . . . . . . . . . Hacking | -11 -10 -9 -9 -8 -7 -7 -7 -6 --------- Run | Yrd Mat Mat Min Mat Fac Low Low Fac Machines Accessed 12 | . 3 2 . 1 3 . 1 2 Terminals 7 | . 3 . . 1 1 . . 2 Fabricators 1 | . . . . . 1 . . . Repair Stations . | . . . . . . . . . Recycling Units . | . . . . . . . . . Scanalyzers 3 | . . 2 . . 1 . . . Garrison Access . | . . . . . . . . . Total Hacks 24 | . 7 3 . 2 6 . 1 5 Successful 16 | . 4 1 . 1 5 . 1 4 Failed 7 | . 3 1 . 1 1 . . 1 Catastrophic . | . . . . . . . . . Database Lockouts 1 | . . 1 . . . . . . Manual . | . . . . . . . . . Terminals 15 | . 7 . . 2 1 . . 5 Fabricators 1 | . . . . . 1 . . . Repair Stations . | . . . . . . . . . Recycling Units . | . . . . . . . . . Scanalyzers 7 | . . 3 . . 4 . . . Garrison Access . | . . . . . . . . . Terminal Hacks 11 | . 4 . . 1 1 . 1 4 Record 4 | . 1 . . . 1 . . 2 Prototype ID Bank 2 | . 1 . . 1 . . . . Open Door 1 | . . . . . . . 1 . Alert Level 1 | . . . . . . . . 1 Unreport Threat 1 | . . . . . . . . 1 Maintenance Status 1 | . 1 . . . . . . . Zone Layout 1 | . 1 . . . . . . . Fabricator Hacks 1 | . . . . . 1 . . . Build 1 | . . . . . 1 . . . Repair Station Hacks . | . . . . . . . . . Recycling Unit Hacks . | . . . . . . . . . Scanalyzer 4 | . . 1 . . 3 . . . Retrieve Study 4 | . . 1 . . 3 . . . Garrison Access Hacks . | . . . . . . . . . Unauthorized Hacks . | . . . . . . . . . Terminals . | . . . . . . . . . Fabricators . | . . . . . . . . . Repair Stations . | . . . . . . . . . Recycling Units . | . . . . . . . . . Scanalyzers . | . . . . . . . . . Garrison Access . | . . . . . . . . . Data Cores Recovered . | . . . . . . . . . Used . | . . . . . . . . . Hacking Detections 7 | . 3 . . 1 1 . . 2 Full Trace Events . | . . . . . . . . . Feedback Events . | . . . . . . . . . Feedback Blocked . | . . . . . . . . . Robot Schematics Acquired . | . . . . . . . . . Robots Built 3 | . . . . . 3 . . . Authchips . | . . . . . . . . . Time 134 | . . . . . 134 . . . Total Robot Build Rating 12 | . . . . . 12 . . . Part Schematics Acquired . | . . . . . . . . . Parts Built . | . . . . . . . . . Authchips . | . . . . . . . . . Time . | . . . . . . . . . Total Part Build Rating . | . . . . . . . . . Part Studies Acquired 4 | . . 1 . . 3 . . . Parts Repaired . | . . . . . . . . . Time . | . . . . . . . . . Parts Recycled . | . . . . . . . . . Recycled Matter . | . . . . . . . . . Retrieved Matter . | . . . . . . . . . Retrieved Components . | . . . . . . . . . Parts Scanalyzed . | . . . . . . . . . Part Schematics Acquired . | . . . . . . . . . Parts Damaged . | . . . . . . . . . Bothacking | -11 -10 -9 -9 -8 -7 -7 -7 -6 ------------ Run | Yrd Mat Mat Min Mat Fac Low Low Fac Used RIF Installer . | . . . . . . . . . Robots Hacked . | . . . . . . . . . Non-combat . | . . . . . . . . . Combat . | . . . . . . . . . Robot Hacks Applied . | . . . . . . . . . Relay Couplers Released . | . . . . . . . . . Fabnet Peak Effective % . | . . . . . . . . . Robots Rewired . | . . . . . . . . . Allies Hacked . | . . . . . . . . . Hacks Repelled . | . . . . . . . . . Allies | -11 -10 -9 -9 -8 -7 -7 -7 -6 -------- Run | Yrd Mat Mat Min Mat Fac Low Low Fac Total Allies 3 | . . . . . 3 . . . Largest Group 3 | . . . . . 3 . . . Highest-Rated Group 60 | . . . . . 60 . . . Highest-Rated Ally 20 | . . . . . 20 . . . Total Orders . | . . . . . . . . . Ally Attacks 10 | . . . . . 10 . . . Total Damage 156 | . . . . . 156 . . . Kills 3 | . . . . . 3 . . . Allies Corrupted . | . . . . . . . . . Allies Melted . | . . . . . . . . . Intel | -11 -10 -9 -9 -8 -7 -7 -7 -6 ------- Run | Yrd Mat Mat Min Mat Fac Low Low Fac Active Infowar (turns) 527 | . 327 130 70 . . . . . Terrain 327 | . 327 . . . . . . . ECM 200 | . . 130 70 . . . . . Robot Analysis Total . | . . . . . . . . . Derelict Logs Recovered 1 | . . . 1 . . . . . Drone Launches . | . . . . . . . . . Drone Recoveries . | . . . . . . . . . Exploration | -11 -10 -9 -9 -8 -7 -7 -7 -6 ------------- Run | Yrd Mat Mat Min Mat Fac Low Low Fac Turns Passed 4117 | 1177 431 360 123 230 451 579 366 400 Spaces Moved 2252 | 235 240 219 138 221 169 311 236 483 Core 513 | 14 32 99 69 104 22 . 6 167 Treads 429 | 221 208 . . . . . . . Legs 954 | . . 40 . 117 147 311 230 109 Wheels . | . . . . . . . . . Hover 207 | . . . . . . . . 207 Flight 149 | . . 80 69 . . . . . Fastest Speed 29 | 50 50 29 29 50 50 185 100 50 Average Speed 122 | 153 147 109 75 88 170 185 129 69 Slowest Speed 350 | 160 350 250 150 120 300 185 185 190 Overloaded Moves . | . . . . . . . . . Propulsion Burnouts . | . . . . . . . . . Robots Hopped . | . . . . . . . . . Potential Cave-ins . | . . . . . . . . . Cave-ins Triggered . | . . . . . . . . . Exploration Rate (%) 26 | 23 44 18 33 27 6 45 27 13 Regions Visited 8 Branch Regions 3 Pre-discovered Areas . | . . . . . . . . . Known Exits Taken . | . . . . . . . . . Unknown Exits Taken 8 | 1 1 1 1 1 1 1 1 . Scrap Searched 1 | . . . . . . 1 . . Spaces Dug . | . . . . . . . . . Terrain Destroyed 22 | . . . 18 4 . . . . Melee . | . . . . . . . . . Projectile 4 | . . . . 4 . . . . AOE 18 | . . . 18 . . . . . Terrain Rammed . | . . . . . . . . . Walls Destroyed . | . . . . . . . . . Machines Disabled . | . . . . . . . . . Actions | -11 -10 -9 -9 -8 -7 -7 -7 -6 --------- Run | Yrd Mat Mat Min Mat Fac Low Low Fac Total 3485 | 1052 275 310 152 242 322 315 286 531 Wait 970 | 806 . 27 . 2 128 4 3 . Move 2244 | 234 239 218 137 220 168 310 235 483 Hop . | . . . . . . . . . Pick Up 55 | 6 4 15 . 5 6 1 10 8 Fast Attach . | . . . . . . . . . Attach 56 | 6 1 18 2 3 8 . 9 9 Detach 14 | . . 6 . . 1 . 5 2 Swap 1 | . 1 . . . . . . . Drop 17 | . 1 3 . . . . 9 4 Fire 78 | . 29 23 3 12 11 . . . Melee 34 | . . . . . . . 15 19 Ram 16 | . . . 10 . . . . 6 Kick . | . . . . . . . . . Crush . | . . . . . . . . . Escape Stasis . | . . . . . . . . . Rewire . | . . . . . . . . . Trap . | . . . . . . . . . Miscellaneous . | . . . . . . . . . Route ------- -11/Scrapyard -10/Materials (discovered 2 exits: *Mat / [Min]) -9/Materials -9/Mines -8/Materials -7/Factory -7/Lower Caves -7/Lower Caves -6/Factory History --------- Turn | Location | Event 3 | -11/Scrapyard | Discovered new exit (range 15) 1178 | -11/Scrapyard | Entered Materials 1179 | -10/Materials | Build established: Mutant 1430 | -10/Materials | Discovered new exit (range 16) 1593 | -10/Materials | Core integrity fell below 50% 1594 | -10/Materials | Released all parts (2) 1600 | -10/Materials | Discovered new exit (range 16) 1609 | -10/Materials | Entered another Materials area 1609 | -9/Materials | Evolved 2 slots: Propulsion x1, Utility x1 1619 | -9/Materials | Lost 5 parts (1p2n2w) 1674 | -9/Materials | Central database locked down 1960 | -9/Materials | Discovered new exit (range 11) 1969 | -9/Materials | Entered Mines 1970 | -9/Mines | Assembled infested the area 1978 | -9/Mines | Learned Materials terminal intel 2021 | -9/Mines | Core integrity fell below 50% 2069 | -9/Mines | Core integrity fell below 20% 2070 | -9/Mines | Lost 8 parts (1p3n1u3w) 2089 | -9/Mines | Discovered new exit (range 6) 2092 | -9/Mines | Entered Materials 2092 | -8/Materials | Evolved 2 slots: Propulsion x1, Utility x1 2093 | -8/Materials | Loaded intel: 12 terminal locations 2290 | -8/Materials | Core integrity fell below 50% 2307 | -8/Materials | Lost 4 parts (1n2u1w) 2319 | -8/Materials | Discovered new exit (range 7) 2322 | -8/Materials | Entered Factory 2322 | -7/Factory | Evolved 2 slots: Power x1, Weapon x1 2573 | -7/Factory | Fabricated B-48 Gladiator (x3) 2729 | -7/Factory | Discovered new exit (range 10) 2773 | -7/Factory | Entered Lower Caves 2800 | -7/Lower Caves | Lost 3 allies 3240 | -7/Lower Caves | Discovered new exit (range 7) 3352 | -7/Lower Caves | Entered another Lower Caves area 3573 | -7/Lower Caves | Encountered a Warlord checkpoint 3662 | -7/Lower Caves | Core integrity fell below 50% 3679 | -7/Lower Caves | Lost 3 parts (1p1n1u) 3708 | -7/Lower Caves | Discovered new exit (range 4) 3718 | -7/Lower Caves | Entered Factory 3718 | -6/Factory | Evolved 2 slots: Propulsion x2 3924 | -6/Factory | Spotted B-75 Beast 4020 | -6/Factory | Core integrity fell below 50% 4049 | -6/Factory | Core integrity fell below 20% 4063 | -6/Factory | Lost 8 parts (1p3n3u1w) 4118 | -6/Factory | Destroyed by G-67 Veteran with Plasma Rifle Last Messages --------------- R-10 Processor collects Imp. Deuterium Engine. Slammed into B-75 Beast. Knocked back. Acquired 56 matter. K-01 Serf collects debris. Penetrated by Slug. Slug penetrates Wall. Penetrated by Slug. Slug penetrates Wall. Penetrated by Slug. Slammed into R-10 Processor. Triggered Shock Trap. The floor emits a surge of raw power. System corrupted (+1). ALERT: Potential suspicious activity detected, Programmers report to Factory Zone 9N. Neutrino Reactor explodes. Triggered Shock Trap. The floor emits a surge of raw power. System corrupted (+2). Map ----- +----------------------------------------------------+ | #????????????????????????????????????????????????? | | #????????????????????????????????????????????????? | | #????????????????????????????????????????????????? | | #????????????????????????????????????????????????? | | #?????#########??????????????????????????????????? | | #????? #???? ????????????????????????????? | | #???? #???? ????????????????????????????? | | #???? #???" ????????????????????????????? | | #??? #???" ????????????????????????????? | | ###? ]???? ????????????????????????????? | | # ??????/#????????????????????????????? | | # """ "??????# #????????????????????????????? | | + """ "??????# #????????????????????????????? | | # """ "??????# #????????????????????????????? | | # ! ""?????# #????????????????????????????? | | ###? """?#### #????????????????????????????? | | #??? ?+ #????????????????????????????? | | ################ #????????????????????????????? | | ######## #????????????????????????????? | | " " " " + #????????????????????????????? | | " " " " ########### #??????""????????????????????? | | " " " " ########### #?????? ????????????????????? | | " " " " # + #?????? ????????????????????? | | " " " " # """ """ # #???###+####### #????????????? | | " " " " #??"" """ # ##### #????????????? | | " " " " #??"" """ ; ^u^/ @ #??????????????????? | | " " " " #? "" "" # / #??????????????????? | | " " " " #? "" "" # ^^ ""#??????????????????? | | ?? # g ""#??????????????????? | | = # # g g""#??????????????????? | | ################### T#??????????????????? | | ????? ^ ""#??????????????????? | | ????? ""#??????????????????? | | ????? ""#??????????????????? | | ???? #??????????????????? | | ??? #??????????????????? | | ##????##### #### #####;#########?????????????? | | ??????????# #??# #???# #?????????????? | | ??????????# #??# #???# #?????????????? | | ??????????# #??# #???# #?????????????? | | ??????????# #??# #???# #?????????????? | | ########### ####+##### #?????????????? | | # # # """ """ #?????????????? | | # # # """ """ #?????????????? | | # # # """ """ #?????????????? | | # # ###########?????????????? | | # # #???????????????????????? | | + # #???????????????????????? | | # + #???????????????????????? | | # # #???????????????????????? | +----------------------------------------------------+ Best States ------------- Heat Dissipation 76 Energy Generation 16 Energy Capacity 290 Matter Stores 300 Matter Capacity 300 Sight Range 16 Terrain Scan Range 14 Terrain Scan Density 10 ECM Strength 1 Armor Coverage 150 Evasion (%) 64 Melee Accuracy 5 Recoil Reduction 2 Offensive Hacking 10 Item Schematics ----------------- None Robot Schematics ------------------ None Fabricated ------------ B-48 Gladiator | x3 | -7/Factory | Preloaded Repaired ---------- Nothing Studied --------- Beam Rifle | -9/Materials | Hacked Deuterium Engine | -7/Factory | Hacked Ion Cannon | -7/Factory | Hacked Titanium Leg | -7/Factory | Hacked Alien Tech Used ----------------- None Achievements -------------- I Have A Map? Live, Flee, And Rebuild Made in Tau Ceti IV My Command Is Your Wish Overwhelming Tourist Challenges ------------ None Game ------ Seed DisposableRiotDeflector Manual? 0 Play Time 00:55:39 Cumulative 3.8 hours Start 2026.09.13 @ 19:40:52 End 2026.09.13 @ 20:37:32 Sessions 1 Manual Loads 0 Difficulty Rogue Special Mode None Game No. 9 Rogue 9 Adventurer 0 Explorer 0 Win Type - Total 0 Types 0/0/0/0/0/0/0/0/0/0 Lore% 1 Gallery% 5 Achievement% 6 Wizard Run 0 Options --------- Layout 1 ASCII 0 Keyboard 1 Movement Numpad Keybinds 0 Fullscreen 1 Font 24/Smallcaps Map View 50x35 Zoom Use 0% Tactical HUD 0 Map Filters NONE Filters NONE Steam 1 RUN: c0fe85de-ad27-40d4-a9fc-b3433abae82a